Workbook

Sheet Releves annee en cours
A1: 2017
A2: Date | B2: Heure | C2: EDF | E2: Onduleur
C3: Production Kwh | D3: Remarques | E3: Production jour wh | F3: Production tolale Kwh | G3: Temps fonctionnement total hh:mm:ss
A4: 2017-01-01 | B4: 10 h 34 | C4: 3109 | E4: 621 | F4: 22445.927 | G4: 30465:59:07 | H4: 22445.927 | I4: =F4-C4 -> 19336.927 | J4: 0.4145138889
A5: 2017-01-02 | B5: 10 h 02 | C5: 3112 | E5: 56 | F5: 22449.409 | G5: 30474:20:55 | H5: =F5-F4 -> 3.482 | I5: 19337.409 | J5: =CDIFFTMPS(G5,G4) -> 0.3484722222
A6: 2017-01-03 | B6: 10 h 00 | C6: 3113 | E6: 48 | F6: 22450.596 | G6: 30482:57:59 | H6: 1.187 | I6: 19337.596 | J6: 0.3590740741
A7: 2017-01-04 | B7: 11 h 52 | C7: 3115 | E7: 602 | F7: 22452.49 | G7: 30493:44:51 | H7: 1.894 | I7: 19337.49 | J7: 0.449212963
A8: 2017-01-05 | B8: 12 h 00 | C8: 3119 | E8: 398 | F8: 22455.99 | G8: 30503:12:42 | H8: 3.5 | I8: 19336.99 | J8: 0.3943402778
A9: 2017-01-06 | B9: 17 h 13 | C9: 3129 | E9: 7545 | F9: 22466.293 | G9: 30517:39:44 | H9: 10.303 | I9: 19337.293 | J9: 0.6021064815
A10: 2017-01-07 | B10: 09 h 49 | C10: 3129 | D10: Non Consommation 000007 Kwh | E10: 57 | F10: 22466.356 | G10: 30519:34:55 | H10: 0.063 | I10: 19337.356 | J10: 0.07998842593
A11: 2017-01-08 | B11: 09 h 29 | C11: 3137 | E11: 17 | F11: 22473.805 | G11: 30528:25:44 | H11: 7.449 | I11: 19336.805 | J11: 0.3686226852
A12: 2017-01-09 | B12: 09 h 11 | C12: 3138 | E12: 12 | F12: 22475.086 | G12: 30537:17:55 | H12: 1.281 | I12: 19337.086 | J12: 0.3695717593
A13: 2017-01-10 | B13: 10 h 15 | C13: 3140 | E13: 24 | F13: 22477.161 | G13: 30546:59:27 | H13: 2.075 | I13: 19337.161 | J13: 0.4038425926
A14: 2017-01-11 | B14: 10 h 19 | C14: 3141 | E14: 120 | F14: 22478.418 | G14: 30556:05:13 | H14: 1.257 | I14: 19337.418 | J14: 0.3790046296
A15: 2017-01-12 | B15: 10 h 50 | C15: 3142 | E15: 166 | F15: 22479.711 | G15: 30565:51:24 | H15: 1.293 | I15: 19337.711 | J15: 0.4070717593
A16: 2017-01-13 | B16: 15 h 34 | C16: 3149 | E16: 4289 | F16: 22486.209 | G16: 30579:36:59 | H16: 6.498 | I16: 19337.209 | J16: 0.5733217593
A17: 2017-01-14 | B17: 14 h 48 | C17: 3154 | E17: 4405 | F17: 22491.007 | G17: 30588:11:48 | H17: 4.798 | I17: 19337.007 | J17: 0.3575115741
A18: 2017-01-15 | B18: 09 h 50 | C18: 3155 | E18: 96 | F18: 22491.668 | G18: 30592:20:30 | H18: 0.661 | I18: 19336.668 | J18: 0.1727083333
A19: 2017-01-16 | B19: 09 h 46 | C19: 3156 | E19: 17 | F19: 22492.695 | G19: 30600:34:58 | H19: 1.027 | I19: 19336.695 | J19: 0.3433796296
A20: 2017-01-17 | B20: 09 h 58 | C20: 3157 | D20: Non Consommation 000007 Kwh | E20: 186 | F20: 22494.031 | G20: 30610:04:14 | H20: 1.336 | I20: 19337.031 | J20: 0.3953240741
A21: 2017-01-18 | B21: 09 h 46 | C21: 3162 | E21: 133 | F21: 22498.838 | G21: 30619:28:12 | H21: 4.807 | I21: 19336.838 | J21: 0.3916435185
A22: 2017-01-19 | B22: 09 h 53 | C22: 3167 | E22: 162 | F22: 22503.863 | G22: 30629:09:41 | H22: 5.025 | I22: 19336.863 | J22: 0.4038078704
A23: 2017-01-20 | B23: 09 h 18 | C23: 3172 | E23: 44 | F23: 22509.162 | G23: 30638:09:22 | H23: 5.299 | I23: 19337.162 | J23: 0.3747800926
A24: 2017-01-21 | B24: 09 h 00 | C24: 3176 | E24: 4 | F24: 22513.514 | G24: 30647:28:08 | H24: 4.352 | I24: 19337.514 | J24: 0.3880324074
A25: 2017-01-22 | B25: 09 h 49 | C25: 3184 | E25: 122 | F25: 22520.667 | G25: 30657:45:28 | H25: 7.153 | I25: 19336.667 | J25: 0.4287037037
A26: 2017-01-23 | B26: 09 h 17 | C26: 3186 | E26: 2 | F26: 22522.686 | G26: 30666:39:39 | H26: 2.019 | I26: 19336.686 | J26: 0.3709606481
A27: 2017-01-24 | B27: 09 h 34 | C27: 3189 | E27: 83 | F27: 22525.075 | G27: 30676:48:57 | H27: 2.389 | I27: 19336.075 | J27: 0.423125
A28: 2017-01-25 | B28: 09 h 26 | C28: 3197 | E28: 66 | F28: 22533.701 | G28: 30686:37:16 | H28: 8.626 | I28: 19336.701 | J28: 0.4085532407
A29: 2017-01-26 | B29: 09 h 18 | C29: 3203 | E29: 35 | F29: 22538.692 | G29: 30696:10:17 | H29: 4.991 | I29: 19335.692 | J29: 0.3979282407
A30: 2017-01-27 | B30: 16 h 16 | C30: 3214 | D30: Non Consommation 000007 Kwh | E30: 2869 | F30: 22549.903 | G30: 30712:35:02 | H30: 11.211 | I30: 19335.903 | J30: 0.6838541667
A31: 2017-01-28 | B31: 15 h 29 | C31: 3217 | E31: 2380 | F31: 22552.458 | G31: 30721:27:36 | H31: 2.555 | I31: 19335.458 | J31: 0.369837963
A32: 2017-01-29 | B32: 10 h 05 | C32: 3218 | E32: 559 | F32: 22553.736 | G32: 30726:04:47 | H32: 1.278 | I32: 19335.736 | J32: 0.1924884259
A33: 2017-01-30 | B33: 09 h 27 | C33: 3226 | E33: 33 | F33: 22561.102 | G33: 30735:28:32 | H33: 7.366 | I33: 19335.102 | J33: 0.3914930556
A34: 2017-01-31 | B34: 09 h 30 | C34: 3229 | E34: 85 | F34: 22564.766 | G34: 30745:24:09 | H34: 3.664 | I34: 19335.766 | J34: 0.4136226852
A35: 2017-02-01 | B35: 09 h 50 | C35: 3238 | E35: 199 | F35: 22577.476 | G35: 30755:43:27 | H35: 12.71 | I35: 19339.476 | J35: 0.4300694444
A36: 2017-02-02 | B36: 08 h 51 | C36: 3246 | E36: 0 | F36: 22580.95 | G36: 30765:00:50 | H36: 3.474 | I36: 19334.95 | J36: 0.3870717593
A37: 2017-02-03 | B37: 13 h 24 | C37: 3251 | D37: Non Consommation 000008 Kwh | E37: 2241 | F37: 22585.784 | G37: 30778:32:47 | H37: 4.834 | I37: 19334.784 | J37: 0.5638541667
A38: 2017-02-04 | B38: 09 h 00 | C38: 3253 | E38: 18 | F38: 22587.815 | G38: 30784:06:09 | H38: 2.031 | I38: 19334.815 | J38: 0.2315046296
A39: 2017-02-05 | B39: 08 h 38 | C39: 3256 | E39: 2772 | F39: 22590.568 | G39: 30793:20:14 | H39: 2.753 | I39: 19334.568 | J39: 0.3847800926
A40: 2017-02-06 | B40: 08 h 36 | C40: 3258 | E40: 3 | F40: 22593.237 | G40: 30803:35:36 | H40: 2.669 | I40: 19335.237 | J40: 0.427337963
A41: 2017-02-07 | B41: 09 h 20 | C41: 3261 | E41: 26 | F41: 22596.118 | G41: 30813:38:10 | H41: 2.881 | I41: 19335.118 | J41: 0.4184490741
A42: 2017-02-08 | B42: 19 h 27 | C42: 3267 | E42: 3588 | F42: 22602.117 | G42: 30832:29:11 | H42: 5.999 | I42: 19335.117 | J42: 0.7854282407
A43: 2017-02-09 | B43: 09 h 28 | C43: 3267 | E43: 137 | F43: 22602.117 | G43: 30832:29:11 | H43: 0 | I43: 19335.117 | J43: 0
A44: 2017-02-10 | B44: 15 h 25 | C44: 3283 | E44: 5625 | F44: 22617.241 | G44: 30850:15:40 | H44: 15.124 | I44: 19334.241 | J44: 0.7406134259
A45: 2017-02-11 | B45: 15 h 26 | C45: 3289 | E45: 4639 | F45: 22622.854 | G45: 30860:42:58 | H45: 5.613 | I45: 19333.854 | J45: 0.435625
A46: 2017-02-12 | B46: 18 h 18 | C46: 3291 | E46: 2042 | F46: 22625.294 | G46: 30873:40:36 | H46: 2.44 | I46: 19334.294 | J46: 0.5400231481
A47: 2017-02-13 | B47: 09 h 05 | C47: 3291 | E47: 37 | F47: 22625.332 | G47: 30875:02:19 | H47: 0.038 | I47: 19334.332 | J47: 0.05674768519
A48: 2017-02-14 | B48: 09 h 26 | C48: 3292 | E48: 143 | F48: 22626.687 | G48: 30885:38:17 | H48: 1.355 | I48: 19334.687 | J48: 0.4416435185
A49: 2017-02-15 | B49: 16 h 21 | C49: 3311 | E49: 10143 | F49: 22644.431 | G49: 30903:12:57 | H49: 17.744 | I49: 19333.431 | J49: 0.7324074074
A50: 2017-02-16 | B50: 09 h 19 | C50: 3311 | E50: 122 | F50: 22644.939 | G50: 30906:52:57 | H50: 0.508 | I50: 19333.939 | J50: 0.1527777778
A51: 2017-02-17 | B51: 12 h 50 | C51: 3325 | E51: 5542 | F51: 22658.289 | G51: 30921:14:55 | H51: 13.35 | I51: 19333.289 | J51: 0.598587963
A52: 2017-02-18 | B52: 08 h 46 | C52: 3330 | E52: 28 | F52: 22663.412 | G52: 30928:02:35 | H52: 5.123 | I52: 19333.412 | J52: 0.2831018519
A53: 2017-02-19 | B53: 10 h 34 | C53: 3342 | E53: 487 | F53: 22674.202 | G53: 30940:41:54 | H53: 10.79 | I53: 19332.202 | J53: 0.5273032407
A54: 2017-02-20 | B54: 09 h 28 | C54: 3349 | E54: 104 | F54: 22681.675 | G54: 30950:23:50 | H54: 7.473 | I54: 19332.675 | J54: 0.4041203704
A55: 2017-02-21 | B55: 09 h 00 | C55: 3353 | E55: 79 | F55: 22685.595 | G55: 30960:56:15 | H55: 3.92 | I55: 19332.595 | J55: 0.4391782407
A56: 2017-02-22 | B56: 08 h 30 | C56: 3364 | E56: 34 | F56: 22695.676 | G56: 30971:30:04 | H56: 10.081 | I56: 19331.676 | J56: 0.440150463
A57: 2017-02-23 | B57: 08 h 58 | C57: 3375 | E57: 164 | F57: 22706.81 | G57: 30983:04:28 | H57: 11.134 | I57: 19331.81 | J57: 0.4822222222
A58: 2017-02-24 | B58: 08 h 18 | C58: 3383 | E58: 7174 | F58: 22713.818 | G58: 30992:59:59 | H58: 7.008 | I58: 19330.818 | J58: 0.4135532407
A59: 2017-02-25 | B59: non | C59: 3402 | D59: non enregistre | E59: non | F59: 22713.818 | G59: 30992:59:59 | H59: 0 | I59: 19311.818 | J59: 0
A60: 2017-02-26 | B60: 16 h 41 | C60: 3407 | E60: 5155 | F60: 22737.304 | G60: 31023:36:40 | H60: =F60-F58 -> 23.486 | I60: =F60-C60 -> 19330.304 | J60: 1.275474537
A61: 2017-02-27 | B61: 16 h 07 | C61: 3418 | E61: 10397 | F61: 22748.018 | G61: 31034:22:14 | H61: =F61-F60 -> 10.714 | I61: 19330.018 | J61: 0.4483101852
A62: 2017-02-28 | B62: 07 h 53 | C62: 3419 | D62: Non Consommation 000008 Kwh | E62: 2 | F62: 22748.685 | G62: 31037:20:35 | H62: 0.667 | I62: 19329.685 | J62: 0.1238541667
A63: 2017-03-01 | B63: 09 h 40 | C63: 3424 | E63: 612 | F63: 22753.917 | G63: 31050:21:45 | H63: 5.232 | I63: 19329.917 | J63: 0.5424768519
A64: 2017-03-02 | B64: 08 h 29 | C64: 3431 | E64: 14 | F64: 22760.825 | G64: 31060:22:35 | H64: 6.908 | I64: 19329.825 | J64: 0.4172453704
A65: 2017-03-03 | B65: 10 h 07 | C65: 3441 | E65: 8 | F65: 22770.575 | G65: 31073:19:00 | H65: 9.75 | I65: 19329.575 | J65: 0.5391782407
A66: 2017-03-04 | B66: 19 h 54 | C66: 3446 | E66: 5048 | F66: 22775.218 | G66: 31082:07:27 | H66: 4.643 | I66: 19329.218 | J66: 0.3669791667
A67: 2017-03-05 | C67: 3460
A68: 2017-03-06 | C68: 3466
A69: 2017-03-07 | C69: 3468
A70: 2017-03-08 | C70: 3473
A71: 2017-03-09 | B71: 18 h 25 | C71: 3483
A72: 2017-03-10 | C72: 3497
A73: 2017-03-11 | B73: 18 h 35 | C73: 3508
A74: 2017-03-12 | B74: 10 h 30 | C74: 3508 | D74: Non Consommation 000008 Kwh | E74: 251 | F74: 22835.98 | G74: 31176:53:00 | H74: =F74-F66 -> 60.762 | I74: =F74-C74 -> 19327.98 | J74: =CDIFFTMPS(G74,G66) -> 3.948298611
A75: 2017-03-13 | B75: 10 h 00 | C75: 3512 | E75: 110 | F75: 22839.704 | G75: 31187:55:51 | H75: =F75-F74 -> 3.724 | I75: 19327.704 | J75: =CDIFFTMPS(G75,G74) -> 0.4603125
A76: 2017-03-14 | B76: 08 h 28 | C76: 3514 | E76: 154 | F76: 22841.251 | G76: 31198:05:56 | H76: 1.547 | I76: 19327.251 | J76: 0.4236689815
A77: 2017-03-15 | B77: 09 h 55 | C77: 3528 | E77: 1704 | F77: 22855.388 | G77: 31211:35:57 | H77: 14.137 | I77: 19327.388 | J77: 0.5625115741
A78: 2017-03-16 | B78: 09 h 16 | C78: 3541 | E78: 916 | F78: 22867.582 | G78: 31223:06:12 | H78: 12.194 | I78: 19326.582 | J78: 0.4793402778
A79: 2017-03-17 | B79: 09 h 25 | C79: 3555 | E79: 1371 | F79: 22881.115 | G79: 31235:32:02 | H79: 13.533 | I79: 19326.115 | J79: 0.5179398148
A80: 2017-03-18 | B80: 08 h 43 | C80: 3568 | E80: 47 | F80: 22893.275 | G80: 31246:27:00 | H80: 12.16 | I80: 19325.275 | J80: 0.454837963
A81: 2017-03-19 | B81: 08 h 50 | C81: 3574 | E81: 623 | F81: 22898.909 | G81: 31258:47:36 | H81: 5.634 | I81: 19324.909 | J81: 0.5143055556
A82: 2017-03-20 | B82: 08 h 13 | C82: 3587 | E82: 10 | F82: 22911.535 | G82: 31269:59:39 | H82: 12.626 | I82: 19324.535 | J82: 0.4667013889
A83: 2017-03-21 | B83: 09 h 21 | C83: 3590 | E83: 354 | F83: 22914.643 | G83: 31282:58:47 | H83: 3.108 | I83: 19324.643 | J83: 0.5410648148
A84: 2017-03-22 | B84: 09 h 17 | C84: 3594 | E84: 549 | F84: 22919.013 | G84: 31295:16:43 | H84: 4.37 | I84: 19325.013 | J84: 0.5124537037
A85: 2017-03-23 | B85: 09 h 00 | C85: 3603 | E85: 83 | F85: 22927.436 | G85: 31307:11:41 | H85: 8.423 | I85: 19324.436 | J85: 0.4965046296
A86: 2017-03-24 | B86: 09 h 01 | C86: 3615 | E86: 754 | F86: 22938.978 | G86: 31319:30:44 | H86: 11.542 | I86: 19323.978 | J86: 0.5132291667
A87: 2017-03-25 | B87: 09 h 20 | C87: 3621 | E87: 166 | F87: 22944.673 | G87: 31331:39:09 | H87: 5.695 | I87: 19323.673 | J87: 0.5058449074
A88: 2017-03-26 | B88: 09 h 23 | C88: 3627 | E88: 231 | F88: 22951.041 | G88: 31343:18:25 | H88: 6.368 | I88: 19324.041 | J88: 0.4856018519
A89: 2017-03-27 | B89: 08 h 57 | C89: 3641 | E89: 110 | F89: 22964.779 | G89: 31355:39:00 | H89: 13.738 | I89: 19323.779 | J89: 0.5142939815
A90: 2017-03-28 | B90: 10 h 56 | C90: 3649 | D90: Non Consommation 000008 Kwh | E90: 815 | F90: 22972.061 | G90: 31369:18:02 | H90: 7.282 | I90: 19323.061 | J90: 0.5687731481
A91: 2017-03-29 | B91: 09 h 16 | C91: 3662 | E91: 233 | F91: 22984.607 | G91: 31381:30:47 | H91: 12.546 | I91: 19322.607 | J91: 0.5088541667
A92: 2017-03-30 | B92: 08 h 36 | C92: 3677 | E92: 61 | F92: 22998.798 | G92: 31393:49:23 | H92: 14.191 | I92: 19321.798 | J92: 0.5129166667
A93: 2017-03-31 | B93: 08 h 37 | C93: 3691 | E93: 32 | F93: 23012.763 | G93: 31406:29:00 | H93: 13.965 | I93: 19321.763 | J93: 0.5275115741
A94: 2017-04-01 | B94: 08 h 51 | C94: 3700 | E94: 9 | F94: 23021.18 | G94: 31418:41:33 | H94: 8.417 | I94: 19321.18 | J94: 0.5087152778
A95: 2017-04-02 | B95: 09 h 27 | C95: 3710 | E95: 98 | F95: 23031.258 | G95: 31432:11:24 | H95: 10.078 | I95: 19321.258 | J95: 0.5623958333
A96: 2017-04-03 | B96: 08 h 42 | C96: 3718 | E96: 82 | F96: 23038.872 | G96: 31444:20:04 | H96: 7.614 | I96: 19320.872 | J96: 0.5060185185
A97: 2017-04-04 | B97: 08 h 22 | C97: 3733 | E97: 39 | F97: 23053.477 | G97: 31457:06:59 | H97: 14.605 | I97: 19320.477 | J97: 0.5325810185
A98: 2017-04-05 | B98: 09 h 16 | C98: 3746 | E98: 275 | F98: 23065.376 | G98: 31471:10:56 | H98: 11.899 | I98: 19319.376 | J98: 0.5860763889
A99: 2017-04-06 | B99: 08 h 28 | C99: 3757 | D99: Non Consommation 000008 Kwh | E99: 69 | F99: 23076 | G99: 31483:28:45 | H99: 10.624 | I99: 19319 | J99: 0.5123726852
A100: 2017-04-07 | B100: 08 h 14 | C100: 3772 | E100: 29 | F100: 23091.29 | G100: 31496:28:16 | H100: 15.29 | I100: 19319.29 | J100: 0.5413310185
A101: 2017-04-08 | B101: 08 h 12 | C101: 3788 | E101: 22 | F101: 23106.136 | G101: 31509:43:15 | H101: 14.846 | I101: 19318.136 | J101: 0.5520717593
A102: 2017-04-09 | B102: 08 h 44 | C102: 3803 | E102: 80 | F102: 23120.689 | G102: 31523:35:29 | H102: 14.553 | I102: 19317.689 | J102: 0.5779398148
A103: 2017-04-10 | B103: 08 h 19 | C103: 3818 | E103: 39 | F103: 23135.034 | G103: 31536:33:49 | H103: 14.345 | I103: 19317.034 | J103: 0.5405092593
A104: 2017-04-11 | B104: 08 h 25 | C104: 3833 | E104: 9 | F104: 23149.483 | G104: 31549:44:06 | H104: 14.449 | I104: 19316.483 | J104: 0.5488078704
A105: 2017-04-12 | B105: 11 h 00 | C105: 3847 | E105: 3006 | F105: 23162.77 | G105: 31565:46:07 | H105: 13.287 | I105: 19315.77 | J105: 0.6680671296
A106: 2017-04-13 | B106: 08 h 24 | C106: 3859 | E106: 52 | F106: 23174.478 | G106: 31576:41:20 | H106: 11.708 | I106: 19315.478 | J106: 0.4550115741
A107: 2017-04-14 | B107: 08 h 03 | C107: 3874 | E107: 52 | F107: 23189.263 | G107: 31589:56:58 | H107: 14.785 | I107: 19315.263 | J107: 0.5525231481
A108: 2017-04-15 | B108: 08 h 37 | C108: 3889 | E108: 18 | F108: 23203.79 | G108: 31603:42:02 | H108: 14.527 | I108: 19314.79 | J108: 0.572962963
A109: 2017-04-16 | B109: 10 h 40 | C109: 3895 | E109: 2167 | F109: 23209.463 | G109: 31618:59:16 | H109: 5.673 | I109: 19314.463 | J109: 0.6369675926
A110: 2017-04-17 | B110: 08 h 19 | C110: 3903 | E110: 65 | F110: 23217.907 | G110: 31630:13:44 | H110: 8.444 | I110: 19314.907 | J110: 0.4683796296
A111: 2017-04-18 | B111: 08 h 55 | C111: 3919 | E111: 332 | F111: 23233.254 | G111: 31644:35:30 | H111: 15.347 | I111: 19314.254 | J111: 0.5984490741
A112: 2017-04-19 | B112: 08 h 40 | C112: 3935 | E112: 129 | F112: 23248.692 | G112: 31658:07:59 | H112: 15.438 | I112: 19313.692 | J112: 0.564224537
A113: 2017-04-20 | B113: 08 h 30 | C113: 3951 | E113: 54 | F113: 23264.694 | G113: 31671:50:02 | H113: 16.002 | I113: 19313.694 | J113: 0.5708680556
A114: 2017-04-21 | B114: 09 h 07 | C114: 3969 | E114: 616 | F114: 23281.148 | G114: 31686:21:47 | H114: 16.454 | I114: 19312.148 | J114: 0.6053819444
A115: 2017-04-22 | B115: 09 h 03 | C115: 3985 | D115: Non Consommation 000008 Kwh | E115: 564 | F115: 23296.667 | G115: 31700:15:07 | H115: 15.519 | I115: 19311.667 | J115: 0.5787037037
A116: 2017-04-23 | B116: 11 h 23 | C116: 4005 | E116: 4223 | F116: 23315.805 | G116: 31716:31:42 | H116: 19.138 | I116: 19310.805 | J116: 0.6781828704
A117: 2017-04-24 | B117: 08 h 32 | C117: 4017 | E117: 187 | F117: 23327.319 | G117: 31727:39:36 | H117: 11.514 | I117: 19310.319 | J117: 0.4638194444
A118: 2017-04-25 | B118: 09 h 23 | C118: 4033 | E118: 501 | F118: 23342.975 | G118: 31742:24:13 | H118: 15.656 | I118: 19309.975 | J118: 0.6143171296
A119: 2017-04-26 | B119: 09 h 15 | C119: 4039 | E119: 13 | F119: 23349.013 | G119: 31755:10:40 | H119: 6.038 | I119: 19310.013 | J119: 0.5322569444
A120: 2017-04-27 | B120: 08 h 50 | C120: 4044 | E120: 209 | F120: 23353.692 | G120: 31768:08:56 | H120: 4.679 | I120: 19309.692 | J120: 0.540462963
A121: 2017-04-28 | B121: 08 h 55 | C121: 4057 | E121: 712 | F121: 23365.616 | G121: 31782:24:06 | H121: 11.924 | I121: 19308.616 | J121: 0.5938657407
A122: 2017-04-29 | B122: 09 h 39 | C122: 4073 | E122: 1792 | F122: 23381.035 | G122: 31797:23:50 | H122: 15.419 | I122: 19308.035 | J122: 0.6248148148
A123: 2017-04-30 | B123: 09 h 24 | C123: 4089 | D123: Non Consommation 000008 Kwh | E123: 1063 | F123: 23396.633 | G123: 31811:34:34 | H123: 15.598 | I123: 19307.633 | J123: 0.590787037
A124: 2017-05-01 | B124: 08 h 43 | C124: 4100 | E124: 279 | F124: 23407.228 | G124: 31824:44:25 | H124: 10.595 | I124: 19307.228 | J124: 0.5485069444
A125: 2017-05-02 | B125: 09 h 07 | C125: 4114 | E125: 226 | F125: 23420.92 | G125: 31838:54:01 | H125: 13.692 | I125: 19306.92 | J125: 0.59
A126: 2017-05-03 | B126: 09 h 38 | C126: 4120 | E126: 391 | F126: 23427.324 | G126: 31853:35:40 | H126: 6.404 | I126: 19307.324 | J126: 0.6122569444
A127: 2017-05-04 | B127: 07 h 55 | C127: 4129 | E127: 92 | F127: 23435.622 | G127: 31866:20:30 | H127: 8.298 | I127: 19306.622 | J127: 0.5311342593
A128: 2017-05-05 | B128: 08 h 46 | C128: 4142 | E128: 334 | F128: 23449.078 | G128: 31881:30:14 | H128: 13.456 | I128: 19307.078 | J128: 0.6317592593
A129: 2017-05-06 | B129: 09 h 04 | C129: 4153 | E129: 248 | F129: 23459.347 | G129: 31895:23:45 | H129: 10.269 | I129: 19306.347 | J129: 0.5788310185
A130: 2017-05-07 | B130: 09 h 26 | C130: 4167 | E130: 1657 | F130: 23472.924 | G130: 31910:21:40 | H130: 13.577 | I130: 19305.924 | J130: 0.6235532407
A131: 2017-05-08 | B131: 08 h 08 | C131: 4184 | E131: 243 | F131: 23489.121 | G131: 31923:41:45 | H131: 16.197 | I131: 19305.121 | J131: 0.5556134259
A132: 2017-05-09 | B132: 08 h 34 | C132: 4202 | E132: 659 | F132: 23506.921 | G132: 31938:43:54 | H132: 17.8 | I132: 19304.921 | J132: 0.6264930556
A133: 2017-05-10 | B133: 08 h 43 | C133: 4220 | E133: 360 | F133: 23523.932 | G133: 31953:19:54 | H133: 17.011 | I133: 19303.932 | J133: 0.6083333333
A134: 2017-05-11 | B134: 08 h 07 | C134: 4232 | D134: Non Consommation 000008 Kwh | E134: 83 | F134: 23535.184 | G134: 31967:14:12 | H134: 11.252 | I134: 19303.184 | J134: 0.579375
A135: 2017-05-12 | B135: 08 h 19 | C135: 4242 | E135: 216 | F135: 23545.512 | G135: 31981:30:30 | H135: 10.328 | I135: 19303.512 | J135: 0.5946527778
A136: 2017-05-13 | B136: 08 h 54 | C136: 4259 | E136: 666 | F136: 23561.138 | G136: 31996:37:12 | H136: 15.626 | I136: 19302.138 | J136: 0.6296527778
A137: 2017-05-14 | B137: 10 h 12 | C137: 4272 | E137: 680 | F137: 23574.417 | G137: 32012:17:12 | H137: 13.279 | I137: 19302.417 | J137: 0.6527777778
A138: 2017-05-15 | B138: 08 h 24 | C138: 4286 | E138: 558 | F138: 23587.706 | G138: 32025:25:50 | H138: 13.289 | I138: 19301.706 | J138: 0.547662037
A139: 2017-05-16 | B139: 12 h 19 | C139: 4310 | E139: 6776 | F139: 23610.55 | G139: 32044:01:59 | H139: 22.844 | I139: 19300.55 | J139: 0.7751041667
A140: 2017-05-17 | B140: 10 h 38 | C140: 4324 | E140: 3599 | F140: 23623.878 | G140: 32057:14:35 | H140: 13.328 | I140: 19299.878 | J140: 0.5504166667
A141: 2017-05-18 | B141: 08 h 17 | C141: 4334 | E141: 48 | F141: 23634.42 | G141: 32069:17:09 | H141: 10.542 | I141: 19300.42 | J141: 0.5017824074
A142: 2017-05-19 | B142: 07 h 54 | C142: 4337 | E142: 133 | F142: 23636.637 | G142: 32083:11:08 | H142: 2.217 | I142: 19299.637 | J142: 0.5791550926
A143: 2017-05-20 | B143: 08 h 26 | C143: 4353 | D143: Non Consommation 000008 Kwh | E143: 507 | F143: 23652.683 | G143: 32098:43:01 | H143: 16.046 | I143: 19299.683 | J143: 0.6471412037
A144: 2017-05-21 | B144: 09 h 30 | C144: 4368 | E144: 2037 | F144: 23666.786 | G144: 32114:47:16 | H144: 14.103 | I144: 19298.786 | J144: 0.6696180556
A145: 2017-05-22 | B145: 09 h 02 | C145: 4384 | E145: 463 | F145: 23682.161 | G145: 32128:57:34 | H145: 15.375 | I145: 19298.161 | J145: 0.5904861111
A146: 2017-05-23 | B146: 09 h 00 | C146: 4399 | E146: 143 | F146: 23696.318 | G146: 32143:05:09 | H146: 14.157 | I146: 19297.318 | J146: 0.588599537
A147: 2017-05-24 | B147: 08 h 47 | C147: 4406 | E147: 756 | F147: 23703.415 | G147: 32157:59:54 | H147: 7.097 | I147: 19297.415 | J147: 0.6213541667
A148: 2017-05-25 | B148: 09 h 11 | C148: 4424 | E148: 1537 | F148: 23720.886 | G148: 32173:34:22 | H148: 17.471 | I148: 19296.886 | J148: 0.6489351852
A149: 2017-05-26 | B149: 09 h 02 | C149: 4441 | E149: 1226 | F149: 23737.054 | G149: 32188:41:56 | H149: 16.168 | I149: 19296.054 | J149: 0.6302546296
A150: 2017-05-27 | B150: 09 h 03 | C150: 4457 | E150: 1160 | F150: 23752.277 | G150: 32203:51:41 | H150: 15.223 | I150: 19295.277 | J150: 0.6317708333
A151: 2017-05-28 | B151: 09 h 45 | C151: 4475 | E151: 2087 | F151: 23769.431 | G151: 32219:40:21 | H151: 17.154 | I151: 19294.431 | J151: 0.6587962963
A152: 2017-05-29 | B152: 07 h 41 | C152: 4488 | E152: 26 | F152: 23782.671 | G152: 32232:52:24 | H152: 13.24 | I152: 19294.671 | J152: 0.5500347222
A153: 2017-05-30 | B153: 08 h 45 | C153: 4495 | E153: 296 | F153: 23789.439 | G153: 32248:32:23 | H153: 6.768 | I153: 19294.439 | J153: 0.6527662037
A154: 2017-05-31 | B154: 08 h 26 | C154: 4498 | E154: 84 | F154: 23792.203 | G154: 32263:04:03 | H154: 2.764 | I154: 19294.203 | J154: 0.6053240741
A155: 2017-06-01 | B155: 08 h 05 | C155: 4511 | D155: Non Consommation 000008 Kwh | E155: 285 | F155: 23804.24 | G155: 32278:01:05 | H155: 12.037 | I155: 19293.24 | J155: 0.6229398148
A156: 2017-06-02 | B156: 07 h 57 | C156: 4527 | E156: 300 | F156: 23820.406 | G156: 32293:18:04 | H156: 16.166 | I156: 19293.406 | J156: 0.6367939815
A157: 2017-06-03 | B157: 08 h 06 | C157: 4542 | E157: 81 | F157: 23834.335 | G157: 32308:25:59 | H157: 13.929 | I157: 19292.335 | J157: 0.6304976852
A158: 2017-06-04 | B158: 07 h 26 | C158: 4544 | E158: 74 | F158: 23836.785 | G158: 32323:22:00 | H158: 2.45 | I158: 19292.785 | J158: 0.6222337963
A159: 2017-06-05 | B159: 10 h 04 | C159: 4553 | E159: 721 | F159: 23845.636 | G159: 32340:36:12 | H159: 8.851 | I159: 19292.636 | J159: 0.7181944444
A160: 2017-06-06 | B160: 08 h 54 | C160: 4566 | E160: 289 | F160: 23857.427 | G160: 32354:45:00 | H160: 11.791 | I160: 19291.427 | J160: 0.5894444444
A161: 2017-06-07 | B161: 09 h 00 | C161: 4581 | E161: 1373 | F161: 23872.557 | G161: 32370:16:23 | H161: 15.13 | I161: 19291.557 | J161: 0.6467939815
A162: 2017-06-08 | B162: 08 h 50 | C162: 4598 | E162: 1169 | F162: 23889.118 | G162: 32385:34:45 | H162: 16.561 | I162: 19291.118 | J162: 0.6377546296
A163: 2017-06-09 | B163: 09 h 30 | C163: 4615 | E163: 545 | F163: 23905.56 | G163: 32401:29:43 | H163: 16.442 | I163: 19290.56 | J163: 0.6631712963
A164: 2017-06-10 | B164: 09 h 03 | C164: 4622 | E164: 1238 | F164: 23912.136 | G164: 32416:28:45 | H164: 6.576 | I164: 19290.136 | J164: 0.6243287037
A165: 2017-06-11 | B165: 09 h 52 | C165: 4640 | E165: 2151 | F165: 23929.354 | G165: 32432:42:00 | H165: 17.218 | I165: 19289.354 | J165: 0.6758680556
A166: 2017-06-12 | B166: 08 h 52 | C166: 4654 | E166: 221 | F166: 23943.147 | G166: 32446:46:01 | H166: 13.793 | I166: 19289.147 | J166: 0.5861226852
A167: 2017-06-13 | B167: 09 h 24 | C167: 4669 | E167: 1488 | F167: 23957.356 | G167: 32462:35:31 | H167: 14.209 | I167: 19288.356 | J167: 0.659375
A168: 2017-06-14 | B168: 08 h 42 | C168: 4684 | E168: 776 | F168: 23972.391 | G168: 32477:16:28 | H168: 15.035 | I168: 19288.391 | J168: 0.6117708333
A169: 2017-06-15 | B169: 09 h 02 | C169: 4700 | E169: 306 | F169: 23987.241 | G169: 32493:00:17 | H169: 14.85 | I169: 19287.241 | J169: 0.6554282407
A170: 2017-06-16 | B170: 08 h 18 | C170: 4706 | D170: Non Consommation 000008 Kwh | E170: 36 | F170: 23993.521 | G170: 32507:14:05 | H170: 6.28 | I170: 19287.521 | J170: 0.5929166667
A171: 2017-06-17 | B171: 09 h 33 | C171: 4722 | E171: 2076 | F171: 24008.242 | G171: 32524:03:32 | H171: 14.721 | I171: 19286.242 | J171: 0.7010069444
A172: 2017-06-18 | B172: 08 h 49 | C172: 4739 | E172: 1139 | F172: 24024.582 | G172: 32538:55:17 | H172: 16.34 | I172: 19285.582 | J172: 0.6192708333
A173: 2017-06-19 | B173: 08 h 38 | C173: 4756 | E173: 791 | F173: 24041.252 | G173: 32554:17:46 | H173: 16.67 | I173: 19285.252 | J173: 0.6406134259
A174: 2017-06-20 | B174: 08 h 45 | C174: 4773 | E174: 811 | F174: 24057.753 | G174: 32570:08:32 | H174: 16.501 | I174: 19284.753 | J174: 0.6602546296
A175: 2017-06-21 | B175: 08 h 23 | C175: 4789 | E175: 536 | F175: 24072.705 | G175: 32585:17:50 | H175: 14.952 | I175: 19283.705 | J175: 0.6314583333
A176: 2017-06-22 | B176: 07 h 24 | C176: 4804 | E176: 68 | F176: 24087.551 | G176: 32600:05:12 | H176: 14.846 | I176: 19283.551 | J176: 0.6162268519
A177: 2017-06-23 | B177: 08 h 24 | C177: 4820 | E177: 359 | F177: 24102.944 | G177: 32616:29:33 | H177: 15.393 | I177: 19282.944 | J177: 0.6835763889
A178: 2017-06-24 | B178: 08 h 00 | C178: 4825 | E178: 35 | F178: 24107.822 | G178: 32630:59:23 | H178: 4.878 | I178: 19282.822 | J178: 0.6040509259
A179: 2017-06-25 | B179: 08 h 07 | C179: 4831 | E179: 53 | F179: 24113.524 | G179: 32646:22:52 | H179: 5.702 | I179: 19282.524 | J179: 0.6413078704
A180: 2017-06-26 | B180: 08 h 52 | C180: 4843 | E180: 246 | F180: 24125.049 | G180: 32662:01:17 | H180: 11.525 | I180: 19282.049 | J180: 0.6516782407
A181: 2017-06-27 | B181: 08 h 41 | C181: 4851 | D181: Non Consommation 000008 Kwh | E181: 170 | F181: 24132.457 | G181: 32677:13:06 | H181: 7.408 | I181: 19281.457 | J181: 0.6332060185
A182: 2017-06-28 | B182: 08 h 54 | C182: 4861 | E182: 129 | F182: 24142.172 | G182: 32692:29:20 | H182: 9.715 | I182: 19281.172 | J182: 0.6362731481
A183: 2017-06-29 | B183: 07 h 56 | C183: 4872 | E183: 306 | F183: 24152.976 | G183: 32706:49:16 | H183: 10.804 | I183: 19280.976 | J183: 0.5971759259
A184: 2017-06-30 | B184: 08 h 07 | C184: 4890 | E184: 440 | F184: 24171.008 | G184: 32722:29:25 | H184: 18.032 | I184: 19281.008 | J184: 0.6528819444
A185: 2017-07-01 | B185: 07 h 39 | C185: 4900 | E185: 48 | F185: 24180.839 | G185: 32737:12:24 | H185: 9.831 | I185: 19280.839 | J185: 0.6131828704
A186: 2017-07-02 | B186: 08 h 33 | C186: 4907 | E186: 105 | F186: 24187.503 | G186: 32753:01:13 | H186: 6.664 | I186: 19280.503 | J186: 0.658900463
A187: 2017-07-03 | B187: 07 h 21 | C187: 4916 | E187: 22 | F187: 24196.553 | G187: 32766:55:34 | H187: 9.05 | I187: 19280.553 | J187: =CDIFFTMPS(G187,G186) -> 0.5794097222
A188: 2017-07-04 | B188: 07 h 58 | C188: 4928 | E188: 318 | F188: 24207.626 | G188: 32783:00:40 | H188: 11.073 | I188: 19279.626 | J188: =CDIFFTMPS(G188,G187) -> 0.6702083333
A189: 2017-07-05 | B189: 08 h 34 | C189: 4946 | E189: 722 | F189: 24224.699 | G189: 32799:04:02 | H189: 17.073 | I189: 19278.699 | J189: =CDIFFTMPS(G189,G188) -> 0.6690046296

Sheet Releves totalises
A1: 2016
A2: Date | B2: Heure | C2: EDF | E2: Onduleur
C3: Production Kwh | D3: Remarques | E3: Production jour wh | F3: Production tolale Kwh | G3: Temps fonctionnement total hh:mm:ss
A4: 2016-01-20 | B4: 14 h 36 | C4: 12238 | E4: 6521 | F4: 19380.345 | G4: 26192:47:54
B5: 17 h 53 | C5: 12238 | E5: 8111 | F5: 19381.918 | G5: 26192:47:54 | H5: =F5-F4 -> 1.573 | J5: =CDIFFTMPS(G5,G4) -> 0
A6: 2016-01-21 | B6: 08 h 43 | C6: 12238 | E6: 2 | F6: 19381.92 | G6: 26196:40:32 | H6: 0.002 | I6: =F6-C6 -> 7143.92 | J6: =CDIFFTMPS(G6,G5) -> 0.1615509259
B7: 09 h 45 | C7: 12238 | E7: 143 | F7: 19382.056 | G7: 26197:38:17 | H7: 0.136 | I7: =F7-C7 -> 7144.056 | J7: 0.04010416667
B8: 10 h 30 | C8: 12238 | E8: 674 | F8: 19382.575 | G8: 26198:20:41 | H8: 0.519 | I8: 7144.575 | J8: 0.02944444444
B9: 11 h 06 | C9: 12238 | D9: Voyant jaune actif plusieurs fois | E9: 1564 | F9: 19383.469 | G9: 26198:58:55 | H9: 0.894 | I9: 7145.469 | J9: 0.02655092593
B10: 11 h 37 | C10: 12238 | E10: 2336 | F10: 19384.242 | G10: 26199:29:41 | H10: 0.773 | I10: 7146.242 | J10: 0.02136574074
B11: 14 h00 | C11: 12239 | E11: 5958 | F11: 19387.864 | G11: 26201:50:29 | H11: 3.622 | I11: 7148.864 | J11: 0.09777777778
B12: 17 h10 | C12: 12239 | E12: 8095 | F12: 19390.014 | G12: 26205:02:25 | H12: 2.15 | I12: 7151.014 | J12: 0.133287037
A13: 2016-01-22 | B13: 07 h 51 | C13: 12239 | E13: 8123 | F13: 19390.041 | G13: 26206:02:09 | H13: 0.027 | I13: 7151.041 | J13: 0.04148148148
B14: 09 h 05 | C14: 12239 | E14: 40 | F14: 19390.08 | G14: 26207:00:26 | H14: 0.039 | I14: 7151.08 | J14: 0.04047453704
B15: 12 h 43 | C15: 12239 | E15: 1798 | F15: 19391.837 | G15: 26210:29:34 | H15: 1.757 | I15: 7152.837 | J15: 0.1452314815
B16: 13 h 53 | C16: 12239 | E16: 2148 | F16: 19392.187 | G16: 26211:53:50 | H16: 0.35 | I16: 7153.187 | J16: 0.05851851852
B17: 18 h 12 | C17: 12239 | E17: 2752 | F17: 19392.793 | G17: 26215:39:01 | H17: 0.606 | I17: 7153.793 | J17: 0.1563773148
A18: 2016-01-23 | B18: 09 h 50 | C18: 12239 | E18: 87 | F18: 19392.877 | G18: 26217:06:17 | H18: 0.084 | I18: 7153.877 | J18: 0.06060185185
B19: 11 h 10 | C19: 12239 | D19: Voyant jaune actif 5 fois consecutifs | E19: 701 | F19: 19393.491 | G19: 26218:27:13 | H19: 0.614 | I19: 7154.491 | J19: 0.0562037037
B20: 12 h 25 | C20: 12239 | E20: 1732 | F20: 19394.519 | G20: 26219:38:53 | H20: 1.028 | I20: 7155.519 | J20: 0.04976851852
B21: 15 h 31 | C21: 12239 | E21: 5154 | F21: 19397.949 | G21: 26222:46:58 | H21: 3.43 | I21: 7158.949 | J21: 0.1306134259
B22: 16 h 51 | C22: 12239 | E22: 5744 | F22: 19398.538 | G22: 26224:07:13 | H22: 0.589 | I22: 7159.538 | J22: 0.05572916667
B23: 18 h 10 | C23: 12239 | E23: 5803 | F23: 19398.596 | G23: 26225:22:18 | H23: 0.058 | I23: 7159.596 | J23: 0.0521412037
A24: 2016-01-24 | E24: Pas de relevé | G24: 26225:22:18 | I24: 0 | J24: 0
A25: 2016-01-25 | B25: 08 h 05 | C25: 12241 | E25: 8540 | F25: 19407.136 | G25: 26235:17:06 | H25: =F25-F23 -> 8.54 | I25: 7166.136 | J25: 0.4130555556
B26: 09 h 20 | C26: 12241 | E26: 49 | F26: 19407.185 | G26: 26236:24:18 | H26: =F26-F25 -> 0.049 | I26: 7166.185 | J26: 0.04666666667
B27: 10 h 59 | C27: 12241 | E27: 1457 | F27: 19408.602 | G27: 26238:02:03 | H27: =F27-F26 -> 1.417 | I27: 7167.602 | J27: 0.06788194444
B28: 12 h 06 | C28: 12242 | E28: 3101 | F28: 19410.241 | G28: 26239:10:09 | H28: =F28-F27 -> 1.639 | I28: 7168.241 | J28: 0.04729166667
B29: 14 h 42 | C29: 12242 | E29: 6495 | F29: 19413.623 | G29: 26241:45:23 | H29: =F29-F28 -> 3.382 | I29: 7171.623 | J29: 0.1078009259
A30: 2016-01-26 | B30: 19 h 00 | C30: 12242 | E30: 1567 | F30: 19416.325 | G30: 26254:50:09 | H30: =F30-F29 -> 2.702 | I30: 7174.325 | J30: 0.5449768519
A31: 2016-01-27 | B31: 09 h 00 | C31: 12242 | E31: 7 | F31: 19416.332 | G31: 26255:29:34 | H31: =F31-F30 -> 0.007 | I31: 7174.332 | J31: 0.02737268519
B32: 10 h 25 | C32: 12242 | E32: 194 | F32: 19416.517 | G32: 26256:56:23 | H32: 0.185 | I32: 7174.517 | J32: 0.06028935185
B33: 11 h 50 | C33: 12242 | E33: 530 | F33: 19416.857 | G33: 26258:20:64 | H33: 0.34 | I33: 7174.857 | J33: 0.05880787037
B34: 16 h 13 | C34: 12242 | E34: 3479 | F34: 19419.801 | G34: 26262:44:16 | H34: 2.944 | I34: 7177.801 | J34: 0.1827777778
A35: 2016-01-28 | B35: 07 h 56 | C35: 12242 | E35: 3748 | F35: 19420.073 | G35: 26264:46:09 | H35: 0.272 | I35: 7178.073 | J35: 0.0846412037
B36: 08 h 55 | C36: 12242 | E36: 13 | F36: 19420.086 | G36: 26265:31:39 | H36: 0.013 | I36: 7178.086 | J36: 0.03159722222
B37: 12 h 06 | C37: 12242 | E37: 1265 | F37: 19421.342 | G37: 26268:44:26 | H37: 1.256 | I37: 7179.342 | J37: 0.1338773148
B38: 14 h 00 | C38: 12242 | E38: 2686 | F38: 19422.756 | G38: 26270:37:54 | H38: 1.414 | I38: 7180.756 | J38: 0.0787962963
B39: 18 h 08 | C39: 12242 | E39: 3979 | F39: 19424.052 | G39: 26274:43:59 | H39: 1.296 | I39: 7182.052 | J39: 0.1708912037
A40: 2016-01-29 | B40: 06 h 45 | C40: 12242 | E40: 3979 | F40: 19424.052 | G40: 26274:49:27 | H40: 0 | I40: 7182.052 | J40: 0.003796296296
B41: 12 h 50 | C41: 12242 | E41: 290 | F41: 19424.342 | G41: 26279:00:39 | H41: 0.29 | I41: 7182.342 | J41: 0.1744444444
A42: 2016-01-30 | B42: 08 h 27 | C42: 12242 | E42: 1 | F42: 19424.986 | G42: 26284:35:28 | H42: 0.644 | I42: 7182.986 | J42: 0.2325115741
B43: 10 h 00 | C43: 12242 | E43: 518 | F43: 19425.511 | G43: 26286:02:58 | H43: 0.525 | I43: 7183.511 | J43: 0.06076388889
A44: 2016-01-31 | B44: 09 h 13 | C44: 12242 | E44: 32 | F44: 19432.071 | G44: 26294:59:52 | H44: =F44-F43 -> 6.56 | I44: 7190.071 | J44: 0.3728472222
B45: 19 h 20 | C45: 12242 | E45: 1169 | F45: 19433.208 | G45: 26303:54:12 | H45: =F45-F44 -> 1.137 | I45: 7191.208 | J45: 0.3710648148
A46: 2016-02-01 | B46: 08 h 19 | C46: 12242 | E46: 1169 | F46: 19433.208 | G46: 26303:59:41 | H46: 0 | I46: 7191.208 | J46: 0.00380787037
B47: 10 h 56 | C47: 12242 | E47: 231 | F47: 19433.44 | G47: 26305:36:32 | H47: 0.232 | I47: 7191.44 | J47: 0.06725694444
B48: 15 h 03 | C48: 12242 | E48: 1558 | F48: 19434.765 | G48: 26310:42:51 | H48: =F48-F47 -> 1.325 | I48: 7192.765 | J48: 0.2127199074
B49: 19 h 27 | C49: 12242 | E49: 1909 | F49: 19435.117 | G49: 26314:02:15 | H49: =F49-F48 -> 0.352 | I49: 7193.117 | J49: 0.1384722222
A50: 2016-02-02 | B50: 07 h 25 | C50: 12242 | E50: 1909 | F50: 19435.117 | G50: 26314:07:42 | H50: =F50-F49 -> 0 | I50: 7193.117 | J50: 0.003784722222
B51: 16 h 13 | C51: 12242 | E51: 1542 | F51: 19436.66 | G51: 26322:51:18 | H51: 1.543 | I51: 7194.66 | J51: 0.3636111111
B52: 17 h 36 | C52: 12242 | E52: 1598 | F52: 19436.715 | G52: 26323:22:24 | H52: 0.055 | I52: 7194.715 | J52: 0.02159722222
A53: 2016-02-03 | B53: 08 h 02 | C53: 12242 | E53: 1601 | F53: 19436.718 | G53: 26323:59:01 | H53: 0.003 | I53: 7194.718 | J53: 0.02542824074
B54: 09 h 23 | C54: 12242 | D54: Non Consommation 000006 Kwh | E54: 52 | F54: 19436.771 | G54: 26324:53:42 | H54: 0.053 | I54: 7194.771 | J54: 0.03797453704
B55: 11 h 00 | C55: 12242 | E55: 525 | F55: 19437.242 | G55: 26326:29:07 | H55: 0.471 | I55: 7195.242 | J55: 0.06626157407
A56: Changement compteur production | G56: 26326:29:07 | J56: 0
B57: 12 h 00 | C57: 0 | E57: 1037 | F57: 19437.755 | G57: 26327:30:46 | H57: =F57-F55 -> 0.513 | I57: =F57-C57 -> 19437.755 | J57: 0.0428125
B58: 13 h 37 | C58: 0 | E58: 1493 | F58: 19438.213 | G58: 26329:06:16 | H58: 0.458 | I58: =F58-C58 -> 19438.213 | J58: 0.06631944444
B59: 17 h 23 | C59: 2 | E59: 3524 | F59: 19440.242 | G59: 26332:52:26 | H59: 2.029 | I59: 19438.242 | J59: 0.1570601852
A60: 2016-02-04 | B60: 09 h 15 | C60: 2 | D60: Non Consommation 000006 Kwh | E60: 74 | F60: 19440.338 | G60: 26334:54:30 | H60: 0.096 | I60: 19438.338 | J60: 0.08476851852
B61: 11 h 00 | C61: 4 | E61: 2121 | F61: 19442.397 | G61: 26336:41:10 | H61: 2.059 | I61: 19438.397 | J61: 0.07407407407
B62: 13 h 45 | C62: 9 | E62: 6643 | F62: 19446.899 | G62: 26339:22:25 | H62: 4.502 | I62: 19437.899 | J62: 0.1119791667
B63: 17 h 25 | C63: 12 | E63: 9897 | F63: 19450.163 | G63: 26343:04:12 | H63: 3.264 | I63: 19438.163 | J63: 0.1540162037
B64: 18 h 35 | C64: 12 | E64: 9919 | F64: 19450.184 | G64: 26344:06:02 | H64: 0.021 | I64: 19438.184 | J64: 0.04293981481
A65: 2016-02-05 | B65: 13 h 10 | C65: 18 | E65: 5508 | F65: 19455.696 | G65: 26349:13:08 | H65: 5.512 | I65: 19437.696 | J65: 0.2132638889
B66: 16 h 33 | C66: 22 | E66: 9263 | F66: 19459.445 | G66: 26352:37:06 | H66: 3.749 | I66: 19437.445 | J66: 0.1416435185
A67: 2016-02-06 | E67: Pas de relevé | G67: 26352:37:06 | I67: 0 | J67: 0
A68: 2016-02-07 | B68: 09 h 45 | C68: 32 | E68: 40 | F68: 19469.214 | G68: 26366:06:43 | H68: =F68-F66 -> 9.769 | I68: 19437.214 | J68: 0.5622337963
B69: 11 h 30 | C69: 34 | E69: 1864 | F69: 19471.029 | G69: 26367:51:20 | H69: 1.815 | I69: 19437.029 | J69: 0.07265046296
B70: 18 h 37 | C70: 39 | E70: 6729 | F70: 19475.902 | G70: 26374:47:30 | H70: 4.873 | I70: 19436.902 | J70: =CDIFFTMPS(G70,G69) -> 0.2890046296
A71: 2016-02-08 | B71: 08 h 36 | C71: 39 | E71: 17 | F71: 19475.92 | G71: 26375:19:30 | H71: 0.018 | I71: 19436.92 | J71: 0.02222222222
B72: 11 h 50 | C72: 43 | E72: 3383 | F72: 19479.275 | G72: 26378:33:09 | H72: 3.355 | I72: 19436.275 | J72: 0.1344791667
B73: 20 h 42 | C73: 49 | E73: 9027 | F73: 19484.929 | G73: 26385:09:32 | H73: 5.654 | I73: 19435.929 | J73: 0.2752662037
A74: 2016-02-09 | B74: 09 h 32 | C74: 49 | E74: 53 | F74: 19484.938 | G74: 26386:28:39 | H74: 0.009 | I74: 19435.938 | J74: 0.05494212963
B75: 10 h 29 | C75: 49 | E75: 118 | F75: 19485.047 | G75: 26387:25:53 | H75: 0.109 | I75: 19436.047 | J75: 0.03974537037
B76: 13 h 05 | C76: 49 | E76: 404 | F76: 19485.334 | G76: 26390:02:00 | H76: 0.287 | I76: 19436.334 | J76: 0.1084143519
B77: 15 h 15 | C77: 49 | E77: 919 | F77: 19485.848 | G77: 26392:12:19 | H77: 0.514 | I77: 19436.848 | J77: 0.09049768519
B78: 18 h 11 | C78: 50 | E78: 1037 | F78: 19485.966 | G78: 26395:03:00 | H78: 0.118 | I78: 19435.966 | J78: 0.1185300926
A79: 2016-02-10 | B79: 08 h 13 | C79: 50 | E79: 1037 | F79: 19485.966 | G79: 26395:08:34 | H79: 0 | I79: 19435.966 | J79: 0.003865740741
B80: 09 h 37 | C80: 50 | E80: 107 | F80: 19486.075 | G80: 26396:41:12 | H80: 0.109 | I80: 19436.075 | J80: 0.0643287037
B81: 14 h 10 | C81: 51 | E81: 1723 | F81: 19487.687 | G81: 26401:13:50 | H81: 1.612 | I81: 19436.687 | J81: 0.1893287037
B82: 16 h 52 | C82: 52 | E82: 2183 | F82: 19488.15 | G82: 26403:55:54 | H82: 0.463 | I82: 19436.15 | J82: 0.1125462963
A83: 2016-02-11 | B83: 09 h 10 | C83: 52 | E83: 39 | F83: 19488.229 | G83: 26406:10:20 | H83: 0.079 | I83: 19436.229 | J83: 0.09335648148
B84: 11 h 04 | C84: 52 | E84: 344 | F84: 19488.532 | G84: 26408:04:02 | H84: 0.303 | I84: 19436.532 | J84: 0.07895833333
B85: 13 h 45 | C85: 54 | E85: 1860 | F85: 19490.052 | G85: 26410:43:28 | H85: 1.52 | I85: 19436.052 | J85: 0.1107175926
A86: 2016-02-12 | B86: 08 h 56 | C86: 55 | E86: 11 | F86: 19491.638 | G86: 26416:06:40 | H86: 1.586 | I86: 19436.638 | J86: 0.2244444444
B87: 13 h 10 | C87: 55 | E87: 370 | F87: 19491.999 | G87: 26420:19:48 | H87: 0.361 | I87: 19436.999 | J87: 0.175787037
A88: 2016-02-13 | B88: 16 h 23 | C88: 66 | E88: 9203 | F88: 19502.09 | G88: 26433:11:48 | H88: 10.091 | I88: 19436.09 | J88: 0.5361111111
B89: 18 h 16 | C89: 66 | E89: 9373 | F89: 19502.258 | G89: 26435:04:05 | H89: 0.168 | I89: 19436.258 | J89: 0.07797453704
A90: 2016-02-14 | B90: 09 h 03 | C90: 66 | E90: 76 | F90: 19502.336 | G90: 26436:08:15 | H90: 0.078 | I90: 19436.336 | J90: 0.04456018519
B91: 14 h 30 | C91: 74 | E91: 7854 | F91: 19510.103 | G91: 26441:34:09 | H91: 7.767 | I91: 19436.103 | J91: 0.2263194444
A92: 2016-02-15 | B92: 08 h 11 | C92: 75 | E92: 8660 | F92: 19510.918 | G92: 26445:41:52 | H92: 0.815 | I92: 19435.918 | J92: 0.172025463
B93: 10 h 02 | C93: 75 | E93: 53 | F93: 19510.972 | G93: 26447:31:30 | H93: 0.054 | I93: 19435.972 | J93: 0.07613425926
B94: 19 h 06 | C94: 77 | E94: 1818 | F94: 19512.736 | G94: 26455:43:55 | H94: 1.764 | I94: 19435.736 | J94: 0.3419560185
A95: 2016-02-16 | B95: 17 h 32 | C95: 80 | E95: 3419 | F95: 19516.155 | G95: 26465:18:30 | H95: 3.419 | I95: 19436.155 | J95: 0.3990162037
A96: 2016-02-17 | B96: 09 h 20 | C96: 81 | E96: 257 | F96: 19516.43 | G96: 26470:41:45 | H96: 0.275 | I96: 19435.43 | J96: 0.2244791667
B97: 11 h 11 | C97: 83 | E97: 3016 | F97: 19519.171 | G97: 26471:30:09 | H97: 2.741 | I97: 19436.171 | J97: 0.03361111111
B98: 17 h 23 | C98: 92 | E98: 11606 | F98: 19527.771 | G98: 26475:41:38 | H98: 8.6 | I98: =F98-C98 -> 19435.771 | J98: 0.1746412037
A99: 2016-02-18 | B99: 16 h 06 | C99: 97 | E99: 4813 | F99: 19532.645 | G99: 26484:50:05 | H99: 4.874 | I99: =F99-C99 -> 19435.645 | J99: 0.3808680556
B100: 18 h 26 | C100: 98 | E100: 5228 | F100: 19533.055 | G100: 26487:05:04 | H100: 0.41 | I100: 19435.055 | J100: 0.09373842593
A101: 2016-02-19 | B101: 08 h 26 | C101: 98 | E101: 26 | F101: 19533.082 | G101: 26487:58:09 | H101: 0.027 | I101: 19435.082 | J101: 0.03686342593
B102: 18 h 29 | C102: 109 | E102: 11171 | F102: 19544.226 | G102: 26497:49:55 | H102: 11.144 | I102: 19435.226 | J102: 0.4109490741
A103: 2016-02-20 | B103: 07 h 57 | C103: 109 | E103: 11171 | F103: 19544.226 | G103: 26498:18:34 | H103: 0 | I103: 19435.226 | J103: 0.01989583333
B104: 08 h 47 | C104: 109 | E104: 26 | F104: 19544.252 | G104: 26499:07:40 | H104: 0.026 | I104: 19435.252 | J104: 0.03409722222
B105: 11 h 44 | C105: 113 | E105: 4058 | F105: 19548.273 | G105: 26502:04:57 | H105: 4.021 | I105: 19435.273 | J105: 0.1231134259
A106: 2016-02-21 | B106: 10 h 00 | C106: 122 | E106: 992 | F106: 19556.657 | G106: 26511:20:22 | H106: 8.384 | I106: 19434.657 | J106: 0.3857060185
B107: 14 h 40 | C107: 130 | E107: 8961 | F107: 19564.605 | G107: 26516:02:55 | H107: 7.948 | I107: 19434.605 | J107: 0.1962152778
A108: 2016-02-22 | B108: 09 h 30 | C108: 133 | E108: 21 | F108: 19566.943 | G108: 26521:16:04 | H108: =F108-F107 -> 2.338 | I108: 19433.943 | J108: 0.2174652778
A109: 2016-02-23 | B109: 08 h 37 | C109: 134 | E109: 39 | F109: 19568.167 | G109: 26531:16:40 | H109: =F109-F108 -> 1.224 | I109: 19434.167 | J109: 0.4170833333
B110: 12 h 47 | C110: 137 | E110: 2698 | F110: 19570.83 | G110: 26535:25:48 | H110: =F110-F109 -> 2.663 | I110: 19433.83 | J110: 0.1730092593
A111: 2016-02-24 | B111: 09 h 58 | C111: 140 | E111: 859 | F111: 19574.322 | G111: 26543:33:10 | H111: 3.492 | I111: 19434.322 | J111: 0.3384490741
B112: 13 h 20 | C112: 145 | E112: 5491 | F112: 19578.958 | G112: 26546:54:56 | H112: 4.636 | I112: 19433.958 | J112: 0.1401157407
A113: 2016-02-25 | B113: 10 h 45 | C113: 149 | E113: 682 | F113: 19582.536 | G113: 26555:12:55 | H113: 3.578 | I113: 19433.536 | J113: 0.3458217593
A114: 2016-02-26 | B114: 07 h 30 | C114: 154 | E114: 5541 | F114: 19587.392 | G114: 26563:08:31 | H114: 4.856 | I114: 19433.392 | J114: 0.3302777778
B115: 08 h 19 | C115: 154 | E115: 35 | F115: 19587.428 | G115: 26563:47:45 | H115: 0.036 | I115: 19433.428 | J115: 0.02724537037
B116: 13 h 32 | C116: 159 | E116: 5664 | F116: 19593.051 | G116: 26569:01:24 | H116: 5.623 | I116: 19434.051 | J116: 0.2178125
A117: 2016-02-27 | B117: 13 h 45 | C117: 165 | E117: 1929 | F117: 19598.109 | G117: 26579:18:21 | H117: 5.058 | I117: 19433.109 | J117: 0.4284375
B118: 17 h 55 | C118: 167 | E118: 3856 | F118: 19600.028 | G118: 26583:29:05 | H118: 1.919 | I118: 19433.028 | J118: 0.1741203704
A119: 2016-02-28 | B119: 09 h 38 | C119: 167 | E119: 54 | F119: 19600.101 | G119: 26585:55:36 | H119: 0.073 | I119: 19433.101 | J119: 0.1017476852
B120: 16 h 29 | C120: 169 | E120: 2351 | F120: 19602.396 | G120: 26592:46:06 | H120: 2.295 | I120: 19433.396 | J120: 0.2850694444
A121: 2016-02-29 | B121: 08 h 46 | C121: 169 | E121: 4 | F121: 19602.579 | G121: 26595:27:07 | H121: 0.183 | I121: 19433.579 | J121: 0.1118171296
B122: 12 h 15 | C122: 170 | E122: 1257 | F122: 19603.837 | G122: 26598:56:17 | H122: 1.258 | I122: 19433.837 | J122: 0.1452546296
B123: 19 h 00 | C123: 174 | E123: 4720 | F123: 19607.295 | G123: 26605:35:01 | H123: 3.458 | I123: 19433.295 | J123: 0.2768981481
A124: 2016-03-01 | B124: 09 h 50 | C124: 174 | E124: 730 | F124: 19608.022 | G124: 26608:01:22 | H124: 0.727 | I124: 19434.022 | J124: 0.1016319444
B125: 12 h 11 | C125: 177 | E125: 3418 | F125: 19610.709 | G125: 26610:21:10 | H125: 2.687 | I125: 19433.709 | J125: 0.09708333333
A126: 2016-03-02 | B126: 09 h 08 | C126: 183 | E126: 88 | F126: 19616.613 | G126: 26618:29:50 | H126: 5.904 | I126: 19433.613 | J126: 0.3393518519
B127: 12 h 42 | C127: 184 | E127: 1056 | F127: 19617.582 | G127: 26622:03:57 | H127: 0.969 | I127: 19433.582 | J127: 0.1486921296
A128: 2016-03-03 | B128: 09 h 10 | C128: 187 | E128: 77 | F128: 19620.658 | G128: 26629:36:16 | H128: 3.076 | I128: 19433.658 | J128: 0.3141087963
B129: 18 h 25 | C129: 192 | E129: 4195 | F129: 19624.775 | G129: 26638:49:17 | H129: 4.117 | I129: 19432.775 | J129: 0.3840393519
A130: 2016-03-04 | B130: 08 h 16 | C130: 192 | E130: 32 | F130: 19624.807 | G130: 26639:51:09 | H130: 0.032 | I130: 19432.807 | J130: 0.04296296296
B131: 09 h 36 | C131: 192 | E131: 394 | F131: 19625.172 | G131: 26641:10:25 | H131: 0.365 | I131: 19433.172 | J131: 0.0550462963
A132: 2016-03-05 | B132: 09 h 23 | C132: 201 | E132: 230 | F132: 19633.323 | G132: 26651:51:29 | H132: 8.151 | I132: 19432.323 | J132: 0.4451851852
B133: 13 h 27 | C133: 203 | E133: 2792 | F133: 19635.893 | G133: 26655:55:45 | H133: 2.57 | I133: 19432.893 | J133: 0.1696296296
A134: 2016-03-06 | B134: 09 h 16 | C134: 207 | E134: 178 | F134: 19639.134 | G134: 26663:01:16 | H134: 3.241 | I134: 19432.134 | J134: =CDIFFTMPS(G134,G133) -> 0.2954976852
B135: 15 h 00 | C135: 212 | E135: 5123 | F135: 19644.08 | G135: 26668:45:10 | H135: 4.946 | I135: 19432.08 | J135: 0.2388194444
A136: 2016-03-07 | B136: 09 h 33 | C136: 213 | E136: 141 | F136: 19645.109 | G136: 26674:32:12 | H136: 1.029 | I136: 19432.109 | J136: 0.2409953704
B137: 15 h 30 | C137: 217 | E137: 3981 | F137: 19648.951 | G137: 26680:07:39 | H137: 3.842 | I137: 19431.951 | J137: 0.2329513889
A138: 2016-03-08 | B138: 08 h 10 | C138: 217 | D138: Non Consommation 000006 Kwh | E138: 28 | F138: 19649.69 | G138: 26684:35:06 | H138: 0.739 | I138: 19432.69 | J138: 0.1857291667
B139: 10 h 40 | C139: 220 | E139: 2792 | F139: 19652.247 | G139: 26687:05:43 | H139: 2.557 | I139: 19432.247 | J139: 0.1045949074
A140: 2016-03-09 | B140: 09 h 46 | C140: 229 | D140: Non Consommation 000006 Kwh | E140: 192 | F140: 19660.873 | G140: 26697:27:44 | H140: 8.626 | I140: 19431.873 | J140: 0.4319560185
B141: 14 h 34 | C141: 231 | E141: 2182 | F141: 19662.873 | G141: 26702:15:39 | H141: 2 | I141: 19431.873 | J141: 0.1999421296
B142: 20 h 40 | C142: 233 | D142: Anniversaire Non Consommation 6 Kwh | E142: 3 | F142: 19664.786 | G142: 26706:48:35 | H142: 1.913 | I142: 19431.786 | J142: 0.189537037
A143: 2016-03-10 | B143: 09 h 07 | C143: 233 | E143: 375 | F143: 19665.165 | G143: 26708:36:35 | H143: 0.379 | I143: 19432.165 | J143: 0.075
B144: 14 h 03 | C144: 242 | E144: 8436 | F144: 19673.233 | G144: 26713:32:17 | H144: 8.068 | I144: 19431.233 | J144: 0.2053472222
A145: 2016-03-11 | B145: 09 h 00 | C145: 245 | E145: 252 | F145: 19675.952 | G145: 26720:12:56 | H145: 2.719 | I145: 19430.952 | J145: 0.2782291667
A146: 2016-03-12 | B146: 08 h 34 | C146: 251 | E146: 49 | F146: 19681.937 | G146: 26731:32:00 | H146: 5.985 | I146: 19430.937 | J146: 0.4715740741
A147: 2016-03-13 | B147: 09 h 34 | C147: 261 | E147: 794 | F147: 19691.817 | G147: 26744:24:30 | H147: 9.88 | I147: 19430.817 | J147: 0.5364583333
A148: 2016-03-14 | B148: 10 h 00 | C148: 271 | E148: 357 | F148: 19701.713 | G148: 26756:07:34 | H148: 9.896 | I148: 19430.713 | J148: 0.4882407407
A149: 2016-03-15 | B149: 09 h 52 | C149: 282 | D149: Non Consommation 000006 Kwh | E149: 930 | F149: 19712.357 | G149: 26768:01:44 | H149: 10.644 | I149: 19430.357 | J149: 0.4959490741
A150: 2016-03-16 | B150: 09 h 25 | C150: 293 | E150: 205 | F150: 19722.803 | G150: 26779:34:06 | H150: 10.446 | I150: 19429.803 | J150: 0.4808101852
A151: 2016-03-17 | B151: 14 h 27 | C151: 298 | E151: 2442 | F151: 19727.697 | G151: 26795:32:10 | H151: 4.894 | I151: 19429.697 | J151: 0.6653240741
A152: 2016-03-18 | B152: 08 h 28 | C152: 300 | E152: 13 | F152: 19729.009 | G152: 26800:57:24 | H152: 1.312 | I152: 19429.009 | J152: 0.2258564815
A153: 2016-03-19 | B153: 09 h 25 | C153: 308 | E153: 658 | F153: 19736.951 | G153: 26814:08:27 | H153: 7.942 | I153: 19428.951 | J153: 0.5493402778
A154: 2016-03-20 | B154: 09 h 32 | C154: 319 | E154: 411 | F154: 19747.417 | G154: 26826:09:32 | H154: 10.466 | I154: 19428.417 | J154: 0.5007523148
A155: 2016-03-21 | B155: 07 h 55 | C155: 325 | E155: 57 | F155: 19753.745 | G155: 26835:49:36 | H155: 6.328 | I155: 19428.745 | J155: 0.4028240741
A156: 2016-03-22 | B156: 08 h 10 | C156: 333 | E156: 9 | F156: 19761.267 | G156: 26848:11:45 | H156: 7.522 | I156: 19428.267 | J156: 0.5153819444
A157: 2016-03-23 | B157: 09 h 50 | C157: 344 | E157: 1870 | F157: 19772.142 | G157: 26862:11:08 | H157: 10.875 | I157: 19428.142 | J157: 0.5829050926
A158: 2016-03-24 | B158: 09 h 35 | C158: 356 | E158: 1180 | F158: 19783.579 | G158: 26874:23:54 | H158: 11.437 | I158: 19427.579 | J158: 0.5088657407
A159: 2016-03-25 | B159: 08 h 18 | C159: 369 | E159: 204 | F159: 19796.144 | G159: 26885:21:19 | H159: 12.565 | I159: 19427.144 | J159: 0.4565393519
A160: 2016-03-26 | B160: 08 h 27 | C160: 375 | E160: 383 | F160: 19802.447 | G160: 26898:03:20 | H160: 6.303 | I160: 19427.447 | J160: 0.5291782407
A161: 2016-03-27 | B161: 10 h 12 | C161: 390 | E161: 565 | F161: 19816.685 | G161: 26911:17:41 | H161: 14.238 | I161: 19426.685 | J161: 0.5516319444
A162: 2016-03-28 | B162: 09 h 59 | C162: 402 | E162: 323 | F162: 19828.065 | G162: 26923:27:33 | H162: 11.38 | I162: 19426.065 | J162: 0.5068518519
A163: 2016-03-29 | B163: 09 h 14 | C163: 411 | E163: 210 | F163: 19836.587 | G163: 26935:22:40 | H163: 8.522 | I163: =F163-C163 -> 19425.587 | J163: 0.4966087963
A164: 2016-03-30 | B164: 09 h 50 | C164: 420 | E164: 891 | F164: 19845.134 | G164: 26948:46:10 | H164: 8.547 | I164: 19425.134 | J164: 0.5579861111
A165: 2016-03-31 | B165: 09 h 13 | C165: 433 | E165: 69 | F165: 19857.696 | G165: 26960:52:10 | H165: 12.562 | I165: 19424.696 | J165: 0.5041666667
A166: 2016-04-01 | B166: 08 h 59 | C166: 437 | E166: 31 | F166: 19861.716 | G166: 26973:07:50 | H166: 4.02 | I166: 19424.716 | J166: 0.5108796296
A167: 2016-04-02 | B167: 14 h 57 | C167: 452 | E167: 9232 | F167: 19876.242 | G167: 26991:47:32 | H167: 14.526 | I167: 19424.242 | J167: 0.7775694444
A168: 2016-04-03 | B168: 09 h 01 | C168: 456 | E168: 78 | F168: 19880.699 | G168: 26998:43:28 | H168: 4.457 | I168: 19424.699 | J168: 0.2888425926
A169: 2016-04-04 | B169: 09 h 50 | C169: 468 | E169: 673 | F169: 19891.496 | G169: 27012:18:45 | H169: 10.797 | I169: 19423.496 | J169: 0.5661689815
A170: 2016-04-05 | B170: 09 h 17 | C170: 474 | E170: 21 | F170: 19897.722 | G170: 27024:13:50 | H170: 6.226 | I170: 19423.722 | J170: 0.4965856481
A171: 2016-04-06 | B171: 09 h 40 | C171: 478 | E171: 240 | F171: 19901.413 | G171: 27037:34:03 | H171: 3.691 | I171: 19423.413 | J171: 0.5557060185
A172: 2016-04-07 | B172: 09 h 32 | C172: 485 | D172: Non Consommation 000006 Kwh | E172: 406 | F172: 19908.675 | G172: 27050:27:31 | H172: 7.262 | I172: 19423.675 | J172: 0.5371296296
A173: 2016-04-08 | B173: 08 h 22 | C173: 492 | E173: 21 | F173: 19915.092 | G173: 27062:20:31 | H173: 6.417 | I173: 19423.092 | J173: 0.4951388889
A174: 2016-04-09 | B174: 08 h 58 | C174: 502 | E174: 141 | F174: 19924.66 | G174: 27075:57:21 | H174: 9.568 | I174: 19422.66 | J174: 0.5672453704
A175: 2016-04-10 | B175: 09 h 02 | C175: 509 | E175: 232 | F175: 19931.901 | G175: 27089:21:33 | H175: 7.241 | I175: 19422.901 | J175: 0.5584722222
A176: 2016-04-11 | B176: 08 h 30 | C176: 525 | E176: 59 | F176: 19947.096 | G176: 27102:02:16 | H176: 15.195 | I176: 19422.096 | J176: 0.528275463
A177: 2016-04-12 | B177: 08 h 23 | C177: 540 | E177: 63 | F177: 19961.196 | G177: 27115:13:08 | H177: 14.1 | I177: 19421.196 | J177: 0.549212963
A178: 2016-04-13 | B178: 08 h 32 | C178: 554 | E178: 53 | F178: 19975.236 | G178: 27128:44:20 | H178: =F178-F177 -> 14.04 | I178: 19421.236 | J178: 0.5633333333
A179: 2016-04-14 | B179: 08 h 33 | C179: 567 | E179: 77 | F179: 19988.019 | G179: 27142:00:33 | H179: 12.783 | I179: 19421.019 | J179: 0.5529282407
A180: 2016-04-15 | B180: 08 h 19 | C180: 582 | E180: 36 | F180: 20002.475 | G180: 27155:34:18 | H180: 14.456 | I180: 19420.475 | J180: 0.5651041667
A181: 2016-04-16 | B181: 09 h 28 | C181: 599 | D181: Non Consommation 000007 Kwh | E181: 900 | F181: 20018.814 | G181: 27170:18:24 | H181: 16.339 | I181: 19419.814 | J181: 0.6139583333
A182: 2016-04-17 | B182: 09 h 23 | C182: 613 | E182: 103 | F182: 20032.275 | G182: 27182:50:35 | H182: 13.461 | I182: 19419.275 | J182: 0.522349537
A183: 2016-04-18 | B183: 08 h 33 | C183: 621 | E183: 113 | F183: 20040.254 | G183: 27195:34:25 | H183: 7.979 | I183: 19419.254 | J183: 0.5304398148
A184: 2016-04-19 | B184: 10 h 14 | C184: 635 | E184: 2305 | F184: 20053.129 | G184: 27211:13:55 | H184: 12.875 | I184: 19418.129 | J184: 0.6524305556
A185: 2016-04-20 | B185: 10 h 09 | C185: 649 | E185: 696 | F185: 20067.234 | G185: 27224:36:40 | H185: 14.105 | I185: 19418.234 | J185: 0.5574652778
A186: 2016-04-21 | B186: 09 h 30 | C186: 659 | E186: 40 | F186: 20076.974 | G186: 27237:28:10 | H186: 9.74 | I186: 19417.974 | J186: 0.5357638889
A187: 2016-04-22 | B187: 09 h 02 | C187: 662 | E187: 259 | F187: 20079.615 | G187: 27250:31:14 | H187: 2.641 | I187: 19417.615 | J187: 0.5437962963
A188: 2016-04-23 | B188: 08 h 42 | C188: 670 | E188: 57 | F188: 20087.61 | G188: 27263:17:24 | H188: 7.995 | I188: 19417.61 | J188: 0.5320601852
A189: 2016-04-24 | B189: 07 h 54 | C189: 679 | E189: 0 | F189: 20095.957 | G189: 27275:41:33 | H189: 8.347 | I189: 19416.957 | J189: 0.5167708333
A190: 2016-04-24 | B190: 08 h 43 | C190: 679 | E190: 120 | F190: 20096.08 | G190: 27276:29:36 | H190: 0.123 | I190: 19417.08 | J190: 0.03336805556
A191: 2016-04-25 | B191: 12 h 15 | C191: 694 | E191: 4377 | F191: 20110.419 | G191: 27294:04:14 | H191: 14.339 | I191: 19416.419 | J191: 0.7323842593
A192: 2016-04-26 | B192: 10 h 05 | C192: 702 | E192: 377 | F192: 20119.013 | G192: 27305:26:23 | H192: 8.594 | I192: 19417.013 | J192: 0.4737152778
A193: 2016-04-27 | B193: 15 h 56 | C193: 717 | E193: 7030 | F193: 20133.322 | G193: 27325:11:20 | H193: 14.309 | I193: 19416.322 | J193: 0.8228819444
A194: 2016-04-28 | B194: 09 h 38 | C194: 720 | D194: Non Consommation 000007 Kwh | E194: 590 | F194: 20136.162 | G194: 27332:43:26 | H194: 2.84 | I194: 19416.162 | J194: 0.3139583333
A195: 2016-04-29 | B195: 09 h 15 | C195: 731 | E195: 590 | F195: 20146.943 | G195: 27346:20:30 | H195: 10.781 | I195: 19415.943 | J195: 0.5674074074
A196: 2016-04-30 | B196: 09 h 00 | C196: 747 | E196: 151 | F196: 20162.619 | G196: 27359:45:37 | H196: 15.676 | I196: 19415.619 | J196: 0.5591087963
A197: 2016-05-01 | B197: 09 h51 | C197: 761 | E197: 2176 | F197: 20175.787 | G197: 27374:55:22 | H197: 13.168 | I197: 19414.787 | J197: 0.6317708333
A198: 2016-05-02 | B198: 09 h 23 | C198: 777 | E198: 1401 | F198: 20191.123 | G198: 27388:50:01 | H198: 15.336 | I198: 19414.123 | J198: =CDIFFTMPS(G198,G197) -> 0.5796180556
A199: 2016-05-03 | B199: 09 h 41 | C199: 794 | E199: 771 | F199: 20207.627 | G199: 27403:26:13 | H199: 16.504 | I199: 19413.627 | J199: 0.6084722222
A200: 2016-05-04 | B200: 08 h 16 | C200: 808 | E200: 250 | F200: 20220.96 | G200: 27416:30:00 | H200: 13.333 | I200: 19412.96 | J200: 0.5442939815
... 243 more rows
